bitfinex-derivatives/quotes_BTCF0:USTF0_20251115
["timestamp","ask_amount","ask_price","bid_price","bid_amount"]
[1763230482042,0.14314,96306.0,96305.0,0.19759644]
[1763230483155,0.14314,96306.0,96305.0,0.14204]
[1763230485852,0.00015574,96310.0,96309.0,0.14204]
[1763230486950,0.07377574,96310.0,96309.0,0.14204]
[1763230490457,0.00015574,96310.0,96309.0,0.14204]
[1763230497054,0.00015574,96310.0,96309.0,0.21629274]
[1763230497250,0.00015574,96310.0,96309.0,0.14204]
[1763230498367,0.00015574,96310.0,96309.0,0.21625788]
[1763230499855,0.00015574,96310.0,96309.0,0.14204]
[1763230500456,0.13691377,96310.0,96309.0,0.21627132]
[1763230500657,0.13691377,96310.0,96309.0,0.14204]
[1763230502068,0.13471574,96310.0,96309.0,0.14204]
[1763230502367,0.06634574,96310.0,96309.0,0.14204]
[1763230503666,0.13471574,96310.0,96309.0,0.14204]
[1763230503869,0.13691377,96310.0,96309.0,0.14345199]
[1763230504058,0.13691377,96310.0,96309.0,0.0692]
[1763230504260,0.13456,96307.0,96306.0,0.14283199]
[1763230504460,0.13456,96303.0,96302.0,0.20557199]
[1763230505462,0.13456,96296.0,96295.0,0.13132]
[1763230507871,0.13456,96296.0,96295.0,0.06958]
[1763230508865,0.13456,96296.0,96295.0,0.001]
[1763230509670,0.02393,96299.0,96291.0,0.00015574]
[1763230509671,0.13456,96292.0,96291.0,0.00015574]
[1763230509970,0.49536,96292.0,96291.0,0.00015574]
[1763230511967,0.51929,96292.0,96291.0,0.00015574]
[1763230513280,0.49536,96292.0,96291.0,0.00015574]
[1763230522573,0.49536,96292.0,96291.0,0.12671574]
[1763230523075,0.49536,96292.0,96291.0,0.00015574]
[1763230523467,0.49536,96292.0,96291.0,0.12671574]
[1763230524472,0.49536,96292.0,96291.0,0.06464574]
[1763230524672,0.49536,96292.0,96291.0,0.00015574]
[1763230526066,0.49536,96292.0,96291.0,0.06464574]
[1763230526272,0.49536,96292.0,96291.0,0.00015574]
[1763230528775,0.49536,96292.0,96291.0,0.05758574]
[1763230530185,0.49536,96292.0,96291.0,0.00015574]
[1763230535293,0.49536,96292.0,96291.0,0.11612574]
[1763230537888,0.3608,96292.0,96291.0,0.11612574]
[1763230538291,0.47868,96292.0,96291.0,0.11612574]
[1763230538491,0.47868,96292.0,96291.0,0.00015574]
[1763230538990,0.47868,96292.0,96291.0,0.05758574]
[1763230539398,0.47868,96292.0,96291.0,0.11612574]
[1763230539793,0.41974,96292.0,96291.0,0.11612574]
[1763230540592,0.3608,96292.0,96291.0,0.11612574]
[1763230541191,0.41974,96292.0,96291.0,0.11612574]
[1763230542594,0.3608,96292.0,96291.0,0.11612574]
[1763230543297,0.41974,96292.0,96291.0,0.11612574]
[1763230543898,0.05894,96292.0,96291.0,0.11612574]
[1763230545292,0.11788,96292.0,96291.0,0.11612574]
[1763230550896,0.11788,96292.0,96291.0,0.05758574]
[1763230551401,0.11788,96292.0,96291.0,0.11612574]
[1763230553701,0.3608,96295.0,96294.0,0.11597]
[1763230553997,0.12787999,96300.0,96299.0,0.11597]
[1763230554202,0.13007802,96300.0,96299.0,0.11597]
[1763230554590,0.12007803,96300.0,96299.0,0.11597]
[1763230555303,0.00219803,96300.0,96299.0,0.11597]
[1763230556299,0.06113803,96300.0,96299.0,0.11597]
[1763230557697,0.05894,96300.0,96299.0,0.11597]
[1763230558202,0.11009573,96310.0,96309.0,0.11148]
[1763230558400,0.45437617,96310.0,96309.0,0.11148]
[1763230558696,0.11229376,96310.0,96309.0,0.11148]
[1763230559606,0.10229377,96310.0,96309.0,0.11148]
[1763230560107,0.00115574,96310.0,96309.0,0.11148]
[1763230560407,0.00215574,96310.0,96309.0,0.11148]
[1763230561499,0.00115574,96310.0,96309.0,0.11148]
[1763230561692,0.00215574,96310.0,96309.0,0.12188663]
[1763230562709,0.00215574,96310.0,96309.0,0.11148]
[1763230563203,0.00015574,96310.0,96309.0,0.11148]
[1763230563410,0.00115574,96310.0,96309.0,0.11148]
[1763230564612,0.00115574,96310.0,96309.0,0.1220856]
[1763230570418,0.00115574,96310.0,96309.0,0.11148]
[1763230570622,0.01783,96300.0,96280.0,0.03112]
[1763230570915,0.11077,96278.0,96277.0,0.76491]
[1763230571103,0.11077,96278.0,96277.0,0.71086]
[1763230571310,0.11077,96278.0,96277.0,0.76491]
[1763230572932,0.11177,96278.0,96277.0,0.76491]
[1763230573633,0.11277,96278.0,96277.0,0.76491]
[1763230573828,0.002,96278.0,96277.0,0.76491]
[1763230575727,0.00219803,96280.0,96279.0,0.10439]
[1763230575923,0.00015574,96287.0,96286.0,0.10439]
[1763230575924,0.05628574,96287.0,96286.0,0.10439]
[1763230577037,0.05728574,96287.0,96286.0,0.10439]
[1763230577339,0.05828574,96287.0,96286.0,0.10439]
[1763230578638,0.11424574,96287.0,96286.0,0.10439]
[1763230579638,0.11324574,96287.0,96286.0,0.10439]
[1763230579838,0.11424574,96287.0,96286.0,0.10439]
[1763230580832,0.11209,96279.0,96278.0,0.13616]
[1763230581037,0.47289,96279.0,96278.0,0.13616]
[1763230582140,0.47389,96279.0,96278.0,0.13616]
[1763230582533,0.47289,96279.0,96278.0,0.13616]
[1763230582735,0.47489,96279.0,96278.0,0.13616]
[1763230583135,0.47389,96279.0,96278.0,0.13616]
[1763230583536,0.47489,96279.0,96278.0,0.13616]
[1763230585745,0.47389,96279.0,96278.0,0.13616]
[1763230585945,0.47489,96279.0,96278.0,0.13616]
[1763230586533,0.47389,96279.0,96278.0,0.13616]
[1763230586744,0.47489,96279.0,96278.0,0.13616]
[1763230587942,0.47389,96279.0,96278.0,0.13616]
[1763230589052,0.47489,96279.0,96278.0,0.13616]
[1763230589437,0.47389,96279.0,96278.0,0.13616]
[1763230589643,0.47489,96279.0,96278.0,0.13616]
[1763230590752,0.47389,96279.0,96278.0,0.13616]
[1763230590950,0.47489,96279.0,96278.0,0.13616]
[1763230591841,0.47389,96279.0,96278.0,0.13616]
[1763230592042,0.47489,96279.0,96278.0,0.13616]
[1763230595145,0.47489,96279.0,96278.0,0.05113]
[1763230595350,0.10054,96271.0,96270.0,0.13191]
[1763230595663,0.46134,96271.0,96270.0,0.13191]
[1763230598252,0.46134,96271.0,96270.0,0.13174]
[1763230600752,0.46134,96271.0,96270.0,0.10079]
[1763230601159,0.46134,96271.0,96270.0,0.13174]
[1763230609079,0.46134,96271.0,96270.0,0.10079]
[1763230609259,0.13135803,96270.0,96269.0,0.00011015]
[1763230610159,0.13135803,96270.0,96268.0,0.00015574]
[1763230610456,0.10054,96269.0,96268.0,0.00015574]
[1763230611260,0.10054,96256.0,96255.0,0.10546506]
[1763230613067,0.10054,96256.0,96255.0,0.05507506]
[1763230613268,0.10054,96256.0,96255.0,0.00467506]
[1763230613871,0.10054,96247.0,96246.0,0.10094582]
[1763230614067,0.46134,96247.0,96246.0,0.00015582]
[1763230614266,0.46134,96247.0,96246.0,0.05055582]
[1763230614968,0.46134,96247.0,96246.0,0.00115582]
[1763230615673,0.10054,96236.0,96235.0,0.10079]
[1763230615974,0.46145015,96236.0,96235.0,0.10079]
[1763230616468,0.10054,96231.0,96230.0,0.0504]
[1763230616861,0.10054,96231.0,96230.0,0.10079]
[1763230617764,0.36091015,96236.0,96226.0,0.10089895]
[1763230617765,0.10054,96227.0,96226.0,0.10089895]
[1763230617969,0.09954,96227.0,96226.0,0.10089895]
[1763230619273,0.09954,96227.0,96226.0,0.10189895]
[1763230619873,0.09954,96227.0,96226.0,0.10289895]
[1763230620673,0.00219803,96230.0,96229.0,0.09096]
[1763230621281,0.36091015,96236.0,96235.0,0.09096]
[1763230621590,0.36091015,96236.0,96226.0,0.00210895]
[1763230621591,0.08959,96227.0,96226.0,0.09306895]
[1763230621972,0.08959,96227.0,96226.0,0.09206895]
[1763230622680,0.08959,96227.0,96226.0,0.09306895]
[1763230622874,0.08959,96227.0,96226.0,0.09206895]
[1763230623571,0.08959,96227.0,96226.0,0.09306895]
[1763230624277,0.00219803,96230.0,96229.0,0.09096]
[1763230628384,0.04722803,96230.0,96229.0,0.09096]
[1763230628578,0.00219803,96230.0,96229.0,0.09096]
[1763230631686,0.04722803,96230.0,96229.0,0.09096]
[1763230632685,0.00219803,96230.0,96229.0,0.09096]
[1763230632872,0.04593803,96230.0,96229.0,0.09096]
[1763230633280,0.00219803,96230.0,96229.0,0.09096]
[1763230633683,0.04593803,96230.0,96229.0,0.09096]
[1763230634579,0.36091015,96236.0,96235.0,0.11442]
[1763230634980,0.40465015,96236.0,96235.0,0.11442]
[1763230635285,0.44884015,96236.0,96235.0,0.11442]
[1763230636687,0.08793,96231.0,96230.0,0.11442]
[1763230637681,0.08793,96227.0,96226.0,0.08911895]
[1763230637886,0.44873,96227.0,96226.0,0.00010895]
[1763230638775,0.44873,96227.0,96226.0,0.00210895]
[1763230639179,0.08793,96222.0,96221.0,0.00015582]
[1763230639380,0.10441,96222.0,96221.0,0.00015582]
[1763230639888,0.08793,96222.0,96221.0,0.00015582]
[1763230640279,0.10441,96222.0,96221.0,0.00015582]
[1763230640875,0.08793,96216.0,96215.0,0.093687]
[1763230641081,0.44873,96216.0,96215.0,0.049397]
[1763230641784,0.44873,96216.0,96215.0,0.093687]
[1763230643292,0.3608,96216.0,96215.0,0.093687]
[1763230643689,0.09012803,96220.0,96219.0,0.04472]
[1763230644291,0.09012803,96220.0,96219.0,0.08901]
[1763230644978,0.08793,96217.0,96216.0,0.08901]
[1763230645183,0.08793,96216.0,96215.0,0.049397]
[1763230645482,0.44873,96216.0,96215.0,0.004677]
[1763230645882,0.44873,96216.0,96215.0,0.049397]
[1763230646086,0.44873,96216.0,96215.0,0.004677]
[1763230646493,0.44873,96216.0,96215.0,0.049397]
[1763230647287,0.44873,96216.0,96215.0,0.004677]
[1763230648094,0.44873,96216.0,96215.0,0.049397]
[1763230648794,0.44873,96216.0,96215.0,0.093167]
[1763230655803,0.44873,96216.0,96215.0,0.118007]
[1763230669210,0.44873,96216.0,96215.0,0.19213474]
[1763230669398,0.44873,96216.0,96215.0,0.118007]
[1763230690613,0.44873,96216.0,96215.0,0.19249932]
[1763230692319,0.40454,96216.0,96215.0,0.19249932]
[1763230692517,0.3608,96216.0,96215.0,0.19249932]
[1763230692717,0.39888,96216.0,96215.0,0.118007]
[1763230695821,0.39888,96216.0,96215.0,0.19249932]
[1763230696124,0.39888,96216.0,96215.0,0.118007]
[1763230699131,0.39512,96216.0,96215.0,0.118007]
[1763230702324,0.39512,96216.0,96215.0,0.004677]
[1763230702538,0.39512,96216.0,96215.0,0.038337]
[1763230703529,0.39512,96216.0,96215.0,0.004677]
[1763230703830,0.02496,96207.0,96206.0,0.00036656]
[1763230704133,0.02496,96197.0,96196.0,0.00471596]
[1763230704321,0.38576,96197.0,96196.0,0.00471596]
[1763230706423,0.38576,96197.0,96196.0,0.03837596]
[1763230708535,0.38576,96197.0,96196.0,0.07215596]
[1763230711727,0.38576,96197.0,96196.0,0.03856596]
[1763230712430,0.38576,96197.0,96196.0,0.00471596]
[1763230714636,0.38676,96197.0,96196.0,0.00471596]
[1763230715139,0.38676,96197.0,96196.0,0.03856596]
[1763230715738,0.38676,96197.0,96196.0,0.07215596]
[1763230717242,0.38676,96197.0,96196.0,0.03856596]
[1763230717440,0.38676,96197.0,96196.0,0.07215596]
[1763230723937,0.37428,96197.0,96196.0,0.07215596]
[1763230724535,0.3829,96197.0,96196.0,0.07215596]
[1763230730048,0.3829,96197.0,96196.0,0.00471596]
[1763230730647,0.3829,96197.0,96196.0,0.07215596]
[1763230731242,0.3829,96197.0,96196.0,0.03856596]
[1763230731749,0.3829,96197.0,96196.0,0.07215596]
[1763230732451,0.3829,96197.0,96175.0,0.02470895]
[1763230732452,0.00999999,96190.0,96175.0,0.02470895]
[1763230732652,0.3608,96176.0,96175.0,0.09214895]
[1763230733345,0.36087923,96176.0,96175.0,0.09214895]
[1763230733545,0.36087923,96176.0,96175.0,0.09314895]
[1763230734160,0.36187923,96176.0,96175.0,0.09314895]
[1763230734939,0.36187923,96176.0,96175.0,0.09214895]
[1763230737246,0.36187923,96176.0,96175.0,0.02470895]
[1763230737650,0.36187923,96176.0,96175.0,0.05855895]
[1763230739149,0.36187923,96176.0,96175.0,0.09214895]
[1763230741848,0.36187923,96176.0,96175.0,0.05855895]
[1763230742656,0.36187923,96176.0,96175.0,0.02470895]
[1763230743948,0.36187923,96176.0,96175.0,0.08969895]
[1763230744255,0.36087923,96176.0,96175.0,0.08969895]
[1763230744457,0.36187923,96176.0,96175.0,0.08969895]
[1763230744851,0.36187923,96176.0,96175.0,0.06748054]
[1763230745757,0.36287923,96176.0,96175.0,0.06748054]
[1763230747452,0.36187923,96176.0,96175.0,0.06748054]
[1763230747655,0.36287923,96176.0,96175.0,0.06748054]
[1763230771681,0.38868305,96176.0,96166.0,0.00025997]
[1763230771870,0.3608,96167.0,96164.0,0.01772]
[1763230772080,0.3608,96167.0,96166.0,0.06088]
[1763230772374,0.38660704,96167.0,96166.0,0.06088]
[1763230772980,0.38660704,96167.0,96164.0,0.01772]
[1763230773171,0.02580704,96166.0,96164.0,0.01772]
[1763230773470,0.02580704,96165.0,96164.0,0.01772]
[1763230773670,0.02580704,96165.0,96160.0,0.01772]
[1763230773875,0.3608,96161.0,96160.0,0.01772]
[1763230774777,0.3608,96161.0,96160.0,0.04774]
[1763230775179,0.3618,96161.0,96160.0,0.04774]
[1763230775373,0.3618,96161.0,96160.0,0.01772]
[1763230777573,0.3618,96161.0,96160.0,0.02039708]
[1763230778175,0.3628,96161.0,96160.0,0.02039708]
[1763230783676,0.3618,96161.0,96160.0,0.02039708]
[1763230783876,0.3628,96161.0,96160.0,0.02039708]
[1763230784278,0.3618,96161.0,96160.0,0.02039708]
[1763230784583,0.3628,96161.0,96160.0,0.02039708]
[1763230785585,0.3628,96161.0,96160.0,0.00267708]
[1763230785978,0.3628,96161.0,96160.0,0.02039708]
[1763230786786,0.3628,96161.0,96160.0,0.00267708]
[1763230787786,0.3618,96161.0,96160.0,0.02039708]
[1763230787985,0.3628,96161.0,96160.0,0.02039708]
[1763230790181,0.3638,96161.0,96160.0,0.02039708]
[1763230790383,0.3638,96161.0,96160.0,0.08127708]
[1763230801418,0.38953046,96161.0,96160.0,0.08127708]
[1763230802808,0.38953046,96161.0,96160.0,0.02039708]
[1763230803220,0.38953046,96161.0,96160.0,0.00267708]
[1763230804412,0.38953046,96161.0,96160.0,0.04723708]
[1763230806103,0.38953046,96161.0,96160.0,0.07594708]
[1763230815901,0.01219802,96160.0,96135.0,0.02017089]
[1763230816098,0.01219802,96160.0,96135.0,0.00403292]
[1763230816099,0.7216,96137.0,96135.0,0.00403292]
[1763230816304,0.02535678,96136.0,96135.0,0.00403292]
[1763230817107,0.02543784,96136.0,96135.0,0.00403292]
[1763230817911,0.02643784,96136.0,96135.0,0.00403292]
[1763230818308,0.02843784,96136.0,96135.0,0.00403292]
[1763230818814,0.02843784,96136.0,96126.0,0.00026008]
[1763230819010,0.3608,96127.0,96126.0,0.00026008]
[1763230819212,0.38615678,96127.0,96126.0,0.00026008]
[1763230819914,0.3608,96127.0,96126.0,0.00026008]
[1763230820814,0.3618,96127.0,96126.0,0.00026008]
[1763230821313,0.3638,96127.0,96126.0,0.00026008]
[1763230823514,0.3618,96127.0,96126.0,0.00026008]
[1763230823709,0.3638,96127.0,96126.0,0.00026008]
[1763230826314,0.3628,96127.0,96126.0,8e-08]
[1763230826522,0.3628,96127.0,96102.0,0.01549]
[1763230826523,0.00999999,96110.0,96102.0,0.01549]
[1763230826713,0.00999999,96110.0,96096.0,0.01549]
[1763230826714,0.7216,96103.0,96096.0,0.01549]
[1763230827820,0.7216,96103.0,96095.0,0.00468284]
[1763230827821,0.7226,96103.0,96095.0,0.00468284]
[1763230828017,0.00219803,96100.0,96095.0,0.00468284]
[1763230828218,0.02503373,96099.0,96096.0,0.06553]
[1763230828418,0.00219803,96100.0,96096.0,0.06553]
[1763230828611,0.02501482,96099.0,96098.0,0.05036]
[1763230828808,0.00219803,96100.0,96099.0,0.05036]
[1763230829215,0.00219803,96100.0,96099.0,0.02556]
[1763230829523,0.00219803,96100.0,96099.0,0.05036]
[1763230830017,0.00419803,96100.0,96096.0,0.01517]
[1763230830213,0.00519803,96100.0,96095.0,0.00468284]
[1763230830419,0.02499844,96099.0,96095.0,0.00468284]
[1763230830618,0.02499844,96098.0,96095.0,0.00468284]
[1763230830822,0.02499844,96097.0,96095.0,0.00468284]
[1763230831013,0.00319803,96100.0,96096.0,0.04073]
[1763230831325,0.02499909,96099.0,96096.0,0.04073]
[1763230831519,0.02499909,96098.0,96095.0,0.00468284]
[1763230831715,0.02499909,96097.0,96095.0,0.00468284]
[1763230831923,0.00519803,96100.0,96095.0,0.00468284]
[1763230832220,0.02498744,96099.0,96096.0,0.01517]
[1763230832430,0.02498744,96098.0,96096.0,0.01517]
[1763230832736,0.02598744,96097.0,96095.0,0.00468284]
[1763230832915,0.001,96097.0,96095.0,0.00468284]
[1763230833116,0.001,96097.0,96096.0,0.06553]
[1763230833417,0.002,96098.0,96097.0,0.05036]
[1763230835215,0.002,96098.0,96095.0,0.00468284]
[1763230835438,0.002,96098.0,96096.0,0.01517]
[1763230835627,0.003,96098.0,96096.0,0.01517]
[1763230837028,0.001,96098.0,96096.0,0.01517]
[1763230837220,0.004,96098.0,96096.0,0.01517]
[1763230838023,0.004,96098.0,96096.0,0.06553]
[1763230838330,0.02496522,96097.0,96096.0,0.06553]
[1763230839022,0.004,96098.0,96097.0,0.05036]
[1763230839328,0.0289701,96098.0,96097.0,0.05036]
[1763230839625,0.0249701,96098.0,96097.0,0.05036]
[1763230840317,0.0289701,96098.0,96097.0,0.05036]
[1763230841726,0.7216,96103.0,96102.0,0.05036]
[1763230842924,0.68174,96103.0,96102.0,0.05036]
[1763230843129,0.60202,96103.0,96102.0,0.05036]
[1763230843427,0.60702,96103.0,96102.0,0.05036]
[1763230843825,0.63101,96103.0,96102.0,0.05036]
[1763230844222,0.60702,96103.0,96102.0,0.05036]
[1763230844928,0.60602,96103.0,96102.0,0.05036]
[1763230845422,0.60402,96103.0,96102.0,0.05036]
[1763230845617,0.60502,96103.0,96102.0,0.05036]
[1763230846330,0.63005349,96103.0,96102.0,0.05036]
[1763230846533,0.62805349,96103.0,96102.0,0.05036]
[1763230846718,0.63005349,96103.0,96102.0,0.05036]
[1763230848325,0.65404349,96103.0,96102.0,0.05036]
[1763230849131,0.65204349,96103.0,96102.0,0.05036]
[1763230849434,0.65404349,96103.0,96102.0,0.05036]
[1763230850440,0.65404349,96103.0,96102.0,0.06553]
[1763230850626,0.68059349,96103.0,96102.0,0.06553]
[1763230851228,0.59019349,96103.0,96102.0,0.06553]
[1763230851427,0.20436,96103.0,96102.0,0.06553]
[1763230851831,0.22835,96103.0,96102.0,0.06553]
[1763230852534,0.22735,96103.0,96102.0,0.06553]
[1763230852723,0.20436,96103.0,96102.0,0.06553]
[1763230852925,0.22635,96103.0,96102.0,0.06553]
[1763230853125,0.2549,96103.0,96102.0,0.06553]
[1763230854330,0.22835,96103.0,96102.0,0.06553]
[1763230854531,0.22735,96103.0,96102.0,0.06553]
[1763230854733,0.22835,96103.0,96102.0,0.06553]
[1763230855034,0.20436,96103.0,96102.0,0.06553]
[1763230856135,0.20336,96103.0,96102.0,0.06553]
[1763230856430,0.20436,96103.0,96102.0,0.06553]
[1763230859737,0.22835,96103.0,96102.0,0.06553]
[1763230860033,0.25352,96103.0,96102.0,0.06553]
[1763230860437,0.20436,96103.0,96102.0,0.06553]
[1763230860733,0.00015608,96116.0,96108.0,0.05781]
[1763230861540,0.00015608,96116.0,96115.0,0.04873]
[1763230862534,0.00015608,96116.0,96102.0,0.04873]
[1763230862535,0.04899,96103.0,96102.0,0.04873]
[1763230863345,0.38462,96107.0,96106.0,0.04873]
[1763230863546,0.00219803,96110.0,96109.0,0.04873]
[1763230864939,0.00419803,96110.0,96109.0,0.04873]
[1763230865241,0.00519803,96110.0,96109.0,0.04873]
[1763230865739,0.003,96110.0,96109.0,0.04873]
[1763230866632,0.00519803,96110.0,96109.0,0.04873]
[1763230868037,0.00010582,96116.0,96109.0,0.04873]
[1763230868242,0.40424253,96117.0,96116.0,0.04873]
[1763230869131,0.40436206,96117.0,96116.0,0.04873]
[1763230870142,0.40436206,96117.0,96107.0,0.00015608]
[1763230870143,0.01399,96089.0,96071.0,0.09293382]
[1763230870337,0.02306,96065.0,96064.0,0.04873]
[1763230870542,0.02306,96062.0,96061.0,0.01519]
[1763230871138,0.02306,96062.0,96061.0,0.03996]
[1763230871341,0.02313583,96062.0,96061.0,0.03996]
[1763230871934,0.02313583,96062.0,96061.0,0.06392]
[1763230875550,7.583e-05,96062.0,96061.0,0.06392]
[1763230876049,0.01180583,96062.0,96061.0,0.06392]
[1763230876647,7.583e-05,96062.0,96061.0,0.06392]
[1763230877443,0.00107583,96062.0,96061.0,0.06392]
[1763230878052,0.01280583,96062.0,96061.0,0.06392]
[1763230878442,0.01180583,96062.0,96061.0,0.06392]
[1763230880549,0.01280583,96062.0,96061.0,0.06392]
[1763230880753,0.00107583,96062.0,96061.0,0.06392]
[1763230881548,0.01180583,96062.0,96061.0,0.06392]
[1763230881751,0.01280583,96062.0,96061.0,0.06392]
[1763230882046,0.02453583,96062.0,96061.0,0.06392]
[1763230882350,0.02553583,96062.0,96061.0,0.06392]
[1763230892269,0.02453583,96062.0,96061.0,0.06392]
[1763230892571,0.02553583,96062.0,96061.0,0.06392]
[1763230894467,0.3608,96065.0,96064.0,0.04643]
[1763230894664,0.32397,96065.0,96064.0,0.04643]
[1763230895460,0.36914,96065.0,96064.0,0.04643]
[1763230895657,0.37027283,96065.0,96064.0,0.04643]
[1763230895859,0.37127283,96065.0,96064.0,0.04643]
[1763230896062,0.34853283,96065.0,96064.0,0.04643]
[1763230896967,0.37127283,96065.0,96064.0,0.04643]
[1763230897473,0.32610283,96065.0,96064.0,0.04643]
[1763230899873,0.00213283,96065.0,96064.0,0.04643]
[1763230900971,0.00113283,96065.0,96064.0,0.04643]
[1763230901374,0.00015608,96071.0,96070.0,0.04643]
[1763230901571,0.00015608,96071.0,96070.0,0.04862803]
[1763230902073,0.05611475,96094.0,96070.0,0.04862803]
[1763230902074,0.38323,96101.0,96100.0,0.04643]
[1763230902277,0.43130847,96101.0,96100.0,0.04862803]
[1763230903278,0.43330847,96101.0,96100.0,0.04862803]
[1763230903575,0.04517,96081.0,96059.0,0.3608]
[1763230903777,0.00999999,96050.0,96035.0,0.12983547]
[1763230903981,0.00999999,96030.0,96024.0,0.01331]
[1763230904186,0.3608,96025.0,96024.0,0.05974]
[1763230904374,0.38518798,96025.0,96024.0,0.05974]
[1763230904983,0.38518798,96025.0,96024.0,0.06074]
[1763230905482,0.38518798,96025.0,96024.0,0.001]
[1763230905690,0.38618798,96025.0,96024.0,0.001]
[1763230906070,0.38518798,96025.0,96024.0,0.001]
[1763230906270,0.38618798,96025.0,96024.0,0.001]
[1763230906471,0.38718798,96025.0,96016.0,0.01331]
[1763230906672,0.3608,96021.0,96016.0,0.01331]
[1763230906985,0.38518798,96021.0,96016.0,0.01331]
[1763230908174,0.38618798,96021.0,96016.0,0.01331]
[1763230908479,0.38718798,96021.0,96016.0,0.01331]
[1763230909182,0.00219803,96020.0,96016.0,0.01331]
[1763230909376,0.02438798,96019.0,96016.0,0.01331]
[1763230910578,0.02438798,96019.0,96016.0,0.03718]
[1763230910777,0.02438798,96019.0,96016.0,0.05974]
[1763230911178,0.02438798,96019.0,96018.0,0.04643]
[1763230911580,0.00219803,96020.0,96019.0,0.04643]
[1763230912574,0.00319803,96020.0,96019.0,0.04643]
[1763230913180,0.00419803,96020.0,96019.0,0.04643]
[1763230914585,0.00319803,96020.0,96019.0,0.04643]
[1763230914787,0.00419803,96020.0,96019.0,0.04643]
[1763230915479,0.00319803,96020.0,96019.0,0.04643]
[1763230915681,0.00419803,96020.0,96019.0,0.04643]
[1763230916082,0.00319803,96020.0,96019.0,0.04643]
[1763230916274,0.00419803,96020.0,96019.0,0.04643]
[1763230921180,0.00419803,96020.0,96019.0,0.02387]
[1763230921388,0.00419803,96020.0,96019.0,0.05234]
[1763230923878,0.2732,96021.0,96020.0,0.05645]
[1763230924085,0.00013096,96029.0,96028.0,0.05645]
[1763230924283,0.36095618,96034.0,96033.0,0.05645]
[1763230924482,0.41768618,96034.0,96033.0,0.05645]
[1763230925081,0.00999999,96040.0,96033.0,0.05645]
[1763230925284,9.979e-05,96039.0,96038.0,0.41725]
[1763230926084,0.07376,96057.0,96056.0,0.05645]
[1763230926285,0.02888,96057.0,96056.0,0.05645]
[1763230927095,0.05673,96057.0,96056.0,0.02798]
[1763230928084,0.05673,96048.0,96047.0,0.00015618]
[1763230928498,0.05673,96048.0,96047.0,0.05660618]
[1763230928995,0.05673,96048.0,96047.0,0.00015618]
[1763230929208,0.05773,96048.0,96047.0,0.00015618]
[1763230929889,0.05773,96048.0,96047.0,0.05660618]
[1763230930089,0.001,96048.0,96047.0,0.05660618]
[1763230930290,0.05773,96048.0,96047.0,0.05660618]
[1763230930691,0.05873,96048.0,96047.0,0.05660618]
[1763230931798,0.00219803,96050.0,96047.0,0.05660618]
[1763230932003,0.002,96048.0,96047.0,0.05660618]
[1763230933495,0.001,96048.0,96047.0,0.05660618]
[1763230934001,0.00419803,96050.0,96049.0,0.06627]
[1763230934300,0.00319803,96050.0,96049.0,0.06627]
[1763230934600,0.00219803,96050.0,96049.0,0.06627]
[1763230935206,0.00319803,96050.0,96049.0,0.06627]
[1763230935905,0.00419803,96050.0,96049.0,0.06627]
[1763230936103,0.002,96050.0,96049.0,0.06627]
[1763230936287,0.08744803,96050.0,96049.0,0.06627]
[1763230936798,0.06759803,96050.0,96049.0,0.06627]
[1763230938290,0.00319803,96050.0,96049.0,0.06627]
[1763230938693,0.00419803,96050.0,96049.0,0.06627]
[1763230938888,0.002,96050.0,96049.0,0.06627]
[1763230939103,0.39302,96064.0,96063.0,0.06597]
[1763230939393,0.0634,96057.0,96056.0,0.42677]
[1763230939596,0.0634,96048.0,96047.0,0.06612618]
[1763230940197,0.00319803,96050.0,96049.0,0.06597]
[1763230940408,0.002,96050.0,96049.0,0.06597]
[1763230940793,0.02984999,96060.0,96049.0,0.06597]
[1763230941102,0.11473983,96066.0,96065.0,0.06597]
[1763230941103,0.00015618,96066.0,96065.0,0.06597]
[1763230941405,0.11458365,96080.0,96060.0,0.01904]
[1763230941604,0.06559803,96070.0,96069.0,0.42677]
[1763230942091,0.0634,96080.0,96079.0,0.06597]
[1763230942286,0.06559803,96080.0,96079.0,0.06597]
[1763230942493,0.03441803,96080.0,96079.0,0.06597]
[1763230942699,0.00219803,96080.0,96079.0,0.06597]
[1763230942900,0.00219803,96080.0,96079.0,0.42677]
[1763230943288,0.00015618,96089.0,96088.0,0.06597]
[1763230943289,0.03237618,96089.0,96088.0,0.06597]
[1763230943494,0.00015618,96089.0,96088.0,0.06597]
[1763230943998,0.03237618,96089.0,96088.0,0.06597]
[1763230944211,0.06355618,96089.0,96088.0,0.06597]
[1763230944697,0.06455618,96089.0,96088.0,0.06597]
[1763230944908,0.06455618,96089.0,96080.0,0.01394]
[1763230944909,0.0634,96071.0,96070.0,0.03296618]
[1763230945089,0.0634,96071.0,96070.0,0.03516421]
[1763230945292,0.0634,96071.0,96070.0,0.06832421]
[1763230950109,0.06493,96071.0,96070.0,0.06832421]
[1763230951897,0.03222,96071.0,96070.0,0.06832421]
[1763230954010,0.06493,96071.0,96070.0,0.06832421]
[1763230963812,0.06422,96078.0,96077.0,0.06026]
[1763230965114,0.08861179,96078.0,96077.0,0.06026]
[1763230965314,0.06522,96078.0,96077.0,0.06026]
[1763230965510,0.001,96078.0,96077.0,0.06026]
[1763230966222,0.03251,96078.0,96077.0,0.06026]
[1763230966709,0.06522,96078.0,96077.0,0.06026]
[1763230967517,0.001,96078.0,96077.0,0.06026]
[1763230968714,0.00015618,96089.0,96085.0,0.06026]
[1763230968915,0.00015618,96089.0,96085.0,0.42106]
[1763230969315,0.00015618,96089.0,96088.0,0.07544]
[1763230971813,0.00115618,96089.0,96088.0,0.07544]
[1763230972214,0.00215618,96089.0,96088.0,0.07544]
[1763230973219,0.00215618,96089.0,96088.0,0.06026]
[1763230973220,0.06637618,96089.0,96088.0,0.06026]
[1763230973419,0.06422,96078.0,96077.0,0.42106]
[1763230973925,0.00073267,96080.0,96079.0,0.06026]
[1763230975414,0.00173267,96080.0,96079.0,0.06026]
[1763230976926,0.06595267,96080.0,96079.0,0.06026]
[1763230977222,0.06595267,96080.0,96077.0,0.3608]